bitfinex/quotes_ETHUSD_20220220
["timestamp","ask_amount","ask_price","bid_price","bid_amount"]
[1645373021126,1.0,2657.8,2657.7,1.0757769]
[1645373024973,1.0,2657.8,2657.4,1.24831317]
[1645373025173,1.00452125,2657.8,2657.4,0.24831317]
[1645373025374,1.0,2657.5,2657.4,0.24831317]
[1645373026074,1.0,2657.5,2657.4,1.09978159]
[1645373026572,1.0,2657.5,2657.4,0.24831317]
[1645373026772,0.00452125,2658.0,2657.6,0.18717323]
[1645373026972,0.66376618,2657.9,2657.6,0.18717323]
[1645373027172,1.0,2657.7,2657.6,0.18717323]
[1645373028623,1.0,2657.7,2657.6,0.15717323]
[1645373031629,1.0,2657.7,2657.6,1.06073309]
[1645373033286,1.0,2657.7,2657.6,0.15717323]
[1645373033694,1.66504117,2657.7,2657.6,0.15717323]
[1645373035186,1.0,2657.7,2657.6,0.15717323]
[1645373035387,1.6648506,2657.7,2657.6,0.15717323]
[1645373037432,1.0,2657.7,2657.6,0.15717323]
[1645373038436,0.00452125,2658.3,2657.6,1.18450857]
[1645373038437,1.0,2657.8,2657.6,1.18450857]
[1645373039431,1.0,2657.7,2657.6,1.18450857]
[1645373044830,1.0,2657.7,2657.6,0.15717323]
[1645373045229,1.66069507,2657.7,2657.6,0.15717323]
[1645373047380,5.46069507,2657.7,2657.6,7.323e-05]
[1645373047875,6.46069507,2657.7,2657.6,7.323e-05]
[1645373048478,12.17534984,2657.7,2657.6,7.323e-05]
[1645373048676,7.36334984,2657.7,2657.6,7.323e-05]
[1645373049083,3.14869507,2657.7,2657.6,7.323e-05]
[1645373050077,2.96069507,2657.7,2657.6,7.323e-05]
[1645373050677,1.66069507,2657.7,2657.6,7.323e-05]
[1645373051345,7.17534984,2657.7,2657.6,7.323e-05]
[1645373052041,6.46069507,2657.7,2657.6,7.323e-05]
[1645373052642,1.66069507,2657.7,2657.6,7.323e-05]
[1645373054786,5.16069507,2657.7,2657.6,7.323e-05]
[1645373054983,5.87534984,2657.7,2657.6,7.323e-05]
[1645373055384,1.66069507,2657.7,2657.6,7.323e-05]
[1645373056786,5.16069507,2657.7,2657.6,7.323e-05]
[1645373057187,6.87645954,2657.7,2657.6,7.323e-05]
[1645373057584,3.37645954,2657.7,2657.6,7.323e-05]
[1645373057786,2.66069507,2657.7,2657.6,7.323e-05]
[1645373059934,17.98069507,2657.7,2657.6,7.323e-05]
[1645373060246,23.06681123,2657.7,2657.6,7.323e-05]
[1645373060439,12.5550598,2657.7,2657.6,7.323e-05]
[1645373060632,11.46069507,2657.7,2657.6,7.323e-05]
[1645373060833,6.46069507,2657.7,2657.6,7.323e-05]
[1645373061032,11.46069507,2657.7,2657.6,7.323e-05]
[1645373061232,11.41069507,2657.7,2657.6,7.323e-05]
[1645373061441,17.93069507,2657.7,2657.6,7.323e-05]
[1645373061639,22.93069507,2657.7,2657.6,7.323e-05]
[1645373061833,12.5050598,2657.7,2657.6,7.323e-05]
[1645373062035,6.41069507,2657.7,2657.6,7.323e-05]
[1645373062677,11.41069507,2657.7,2657.6,7.323e-05]
[1645373063485,11.41069507,2657.7,2657.1,0.01214873]
[1645373063486,24.63008106,2657.7,2657.1,0.01214873]
[1645373063684,11.52,2657.1,2655.5,7.38]
[1645373063892,5.0,2656.1,2655.6,0.86483441]
[1645373064082,1.0,2655.6,2655.5,7.38]
[1645373064281,1.0,2655.6,2655.3,0.97309746]
[1645373064480,1.0,2655.7,2655.3,0.97309746]
[1645373064680,16.52,2656.1,2655.4,0.8454908]
[1645373065381,1.0,2655.5,2655.4,0.8454908]
[1645373065780,1.0,2655.5,2655.4,0.80302899]
[1645373066833,16.52,2656.1,2655.7,0.03253708]
[1645373067233,1.0,2655.8,2655.7,0.03253708]
[1645373069133,1.0,2655.8,2655.7,1.09244737]
[1645373070983,1.0,2655.8,2655.7,0.03253708]
[1645373078086,1.0,2655.8,2655.7,0.81617601]
[1645373078283,1.0,2655.8,2655.7,1.81617601]
[1645373078679,1.0,2655.8,2655.7,0.81617601]
[1645373078881,1.0,2655.9,2655.7,4.31617601]
[1645373079079,1.0,2655.9,2655.8,0.78363893]
[1645373079283,1.0,2655.9,2655.8,4.28363893]
[1645373079482,1.0,2656.2,2655.8,4.88363893]
[1645373079681,1.0,2656.2,2655.9,0.78363893]
[1645373079882,8.298,2657.1,2655.9,0.78363893]
[1645373079883,1.0,2656.3,2655.9,0.78363893]
[1645373080083,1.0,2656.2,2655.9,0.78363893]
[1645373080484,1.0,2656.2,2656.0,0.84978345]
[1645373080883,1.0,2656.2,2656.0,1.14978345]
[1645373081137,1.0,2656.3,2656.1,0.78399852]
[1645373081331,1.0,2656.3,2656.1,2.08399852]
[1645373081531,1.0,2656.3,2656.1,1.3]
[1645373081734,1.0,2656.3,2656.2,1.08392747]
[1645373081932,0.25,2657.0,2656.2,1.08392747]
[1645373082135,1.0,2656.3,2656.2,0.3]
[1645373082333,1.0,2656.3,2656.2,1.084312]
[1645373082534,1.0,2656.3,2656.2,0.29571397]
[1645373082833,1.0,2656.3,2656.1,0.00224898]
[1645373083234,1.0,2656.2,2656.1,0.00224898]
[1645373083436,1.0,2656.2,2655.9,0.78438286]
[1645373083437,1.0,2656.2,2655.9,1.8906088]
[1645373083633,1.0,2656.2,2656.1,0.00224893]
[1645373083836,0.1882,2657.0,2656.1,0.00224893]
[1645373084035,1.0,2656.2,2656.1,0.00224893]
[1645373084637,1.0,2656.2,2656.0,0.78440054]
[1645373084887,1.0,2656.2,2656.0,0.78664949]
[1645373085079,1.0,2656.1,2656.0,0.78664949]
[1645373085885,1.0,2656.1,2656.0,0.78440054]
[1645373086886,0.25,2657.2,2656.5,0.00920874]
[1645373087083,0.80454,2657.1,2656.5,1.0974111]
[1645373087284,0.28,2656.6,2656.5,1.0974111]
[1645373087688,1.32128891,2657.4,2656.5,1.0974111]
[1645373087886,1.0,2656.6,2656.5,1.0974111]
[1645373088385,1.0,2656.6,2656.5,0.00920874]
[1645373089036,1.0,2656.7,2656.5,0.00920874]
[1645373089429,1.0,2656.7,2656.5,0.77617167]
[1645373089631,1.0,2656.7,2656.6,0.76696293]
[1645373089828,1.0,2656.7,2656.6,1.91631596]
[1645373090029,1.0,2656.7,2656.6,1.91676099]
[1645373090230,1.0,2656.7,2656.6,2.51676099]
[1645373090427,0.7984269,2656.7,2656.6,2.51676099]
[1645373090834,0.00224967,2657.4,2656.6,2.51676099]
[1645373091028,0.00224967,2657.4,2656.7,0.76740796]
[1645373091428,0.9994269,2656.8,2656.7,0.76740796]
[1645373091831,0.9994269,2656.8,2656.7,4.26740796]
[1645373092030,0.9994269,2657.0,2656.7,4.26740796]
[1645373092276,0.9994269,2657.0,2656.8,0.76740796]
[1645373092879,0.9994269,2657.0,2656.9,3.5]
[1645373093175,0.9994269,2657.0,2656.9,0.76740796]
[1645373093383,0.9994269,2657.0,2656.9,3.5]
[1645373093576,0.9994269,2657.2,2656.9,1.06740796]
[1645373093778,0.00224979,2657.4,2657.0,1.86996586]
[1645373093779,0.9994269,2657.3,2657.0,1.86996586]
[1645373093976,0.9994269,2657.3,2657.1,0.76740796]
[1645373094675,1.00167489,2657.4,2657.1,0.76097299]
[1645373094875,1.00167489,2657.4,2657.0,1.10480629]
[1645373095075,1.00167489,2657.4,2657.0,1.40480629]
[1645373095576,1.00167489,2657.4,2657.0,1.4025579]
[1645373095577,0.9994269,2657.4,2657.0,1.4025579]
[1645373095775,1.00167491,2657.4,2657.0,1.40480632]
[1645373096229,1.00167491,2657.4,2657.0,13.92480632]
[1645373096429,0.00224801,2657.4,2657.1,11.708]
[1645373096627,0.9994269,2657.8,2657.1,0.188]
[1645373096933,0.9994269,2657.8,2657.7,0.84883401]
[1645373097529,0.9994269,2657.8,2657.1,2.4357]
[1645373098536,0.9994269,2657.8,2657.1,5.9357]
[1645373099134,0.9994269,2657.8,2657.5,0.97946292]
[1645373099334,0.00225084,2657.6,2657.5,0.97946292]
[1645373100184,0.9994269,2657.8,2657.5,1.27946292]
[1645373100584,0.00225081,2657.7,2657.5,1.27946292]
[1645373101487,0.9994269,2657.8,2657.5,1.27946292]
[1645373101685,0.9994269,2657.8,2657.5,4.77946292]
[1645373101686,0.00225037,2657.7,2657.5,4.77946292]
[1645373101888,0.00225037,2657.7,2657.6,1.0]
[1645373102488,0.00225037,2657.7,2657.6,4.5]
[1645373102692,0.00452125,2658.2,2657.8,0.94094]
[1645373102893,0.25452125,2658.3,2657.8,5.44094]
[1645373103094,0.00452125,2658.3,2657.9,0.3]
[1645373103391,0.019,2658.5,2657.9,0.3]
[1645373103636,0.25452125,2659.0,2657.9,0.3]
[1645373103839,1.0,2658.7,2658.4,0.98079921]
[1645373104234,1.0,2658.5,2658.4,0.98079921]
[1645373106634,1.0,2658.5,2658.2,1.94078]
[1645373106836,1.00452125,2658.5,2658.2,0.94078]
[1645373107036,0.01859142,2658.5,2658.2,0.94078]
[1645373107292,0.00225013,2658.6,2658.2,4.44078]
[1645373107487,0.00452125,2659.3,2658.2,4.74078]
[1645373107694,0.00452125,2659.3,2658.3,1.0]
[1645373107695,0.00225016,2658.5,2658.3,1.0]
[1645373107887,0.00225016,2658.5,2658.4,0.89892975]
[1645373108487,0.00225016,2658.5,2658.3,1.3]
[1645373108688,0.99907017,2658.5,2658.3,0.3]
[1645373108887,0.99907017,2658.5,2658.2,1.0]
[1645373109092,1.00359142,2658.5,2658.2,1.0]
[1645373109293,0.99907017,2658.4,2658.1,1.3]
[1645373109488,0.99907017,2658.3,2658.1,1.3]
[1645373109687,0.99907017,2658.3,2658.2,2.16263976]
[1645373109889,0.99907017,2658.3,2658.2,1.24563976]
[1645373110088,1.00132037,2658.3,2658.2,1.24563976]
[1645373110691,1.00132037,2658.3,2658.2,0.94563976]
[1645373111136,0.99907017,2658.3,2658.2,0.94563976]
[1645373113429,0.99907017,2658.6,2658.2,0.94563976]
[1645373113629,6.42175063,2659.6,2658.7,0.90596891]
[1645373113830,0.188,2659.4,2658.7,0.90596891]
[1645373114029,0.002,2658.8,2658.7,0.90596891]
[1645373114234,0.19699692,2659.5,2658.7,0.90596891]
[1645373114633,1.0,2658.8,2658.7,0.90596891]
[1645373114876,1.0,2658.8,2658.3,3.0201]
[1645373115078,1.0,2658.8,2658.3,3.5]
[1645373115278,1.0,2658.6,2658.2,1.4538]
[1645373115480,1.0,2658.6,2658.2,0.3]
[1645373115677,1.0,2658.6,2658.1,4.5]
[1645373115678,1.0,2658.6,2658.1,1.3]
[1645373115881,1.0,2658.6,2658.3,0.94640273]
[1645373116082,0.438,2659.5,2658.5,13.5]
[1645373116083,0.25899721,2659.5,2658.5,13.5]
[1645373116280,0.00899721,2659.5,2658.6,1.94062]
[1645373116480,1.0,2658.8,2658.6,0.94062]
[1645373116679,1.0,2658.7,2658.6,0.94062]
[1645373116883,1.0,2658.7,2658.4,0.188]
[1645373117182,0.75985063,2659.3,2658.3,3.91750273]
[1645373117183,1.0,2658.6,2658.3,3.91750273]
[1645373117578,1.0,2658.6,2658.3,0.94640273]
[1645373118636,1.00225011,2658.6,2658.3,0.94640273]
[1645373119540,1.0,2658.6,2658.3,1.24640273]
[1645373119737,1.00225011,2658.6,2658.3,2.24640273]
[1645373120842,0.95225011,2658.6,2658.3,2.24640273]
[1645373121239,0.00225011,2658.6,2658.4,3.5]
[1645373121439,1.00225011,2658.6,2658.4,3.5]
[1645373121638,1.00225011,2658.6,2658.3,1.24640273]
[1645373121839,1.0,2658.6,2658.3,1.24640273]
[1645373122146,1.00225009,2658.6,2658.2,1.0]
[1645373122393,1.0,2658.4,2657.9,0.188]
[1645373122587,1.0,2658.3,2657.8,4.474]
[1645373122790,1.0,2658.3,2657.6,2.9174]
[1645373122987,1.0,2658.0,2657.6,2.9174]
[1645373123188,1.0,2658.1,2657.7,1.12894]
[1645373123392,1.0,2658.1,2657.8,0.93809366]
[1645373123886,1.0,2658.1,2657.8,1.23809366]
[1645373124088,1.0,2658.1,2657.8,1.53809366]
[1645373124289,1.0,2658.1,2657.8,2.53809366]
[1645373124491,0.00225029,2658.1,2657.8,1.53809366]
[1645373124690,0.00225029,2658.1,2657.9,1.188]
[1645373125089,0.00225029,2658.1,2657.9,0.188]
[1645373125287,0.00225029,2658.1,2657.9,1.188]
[1645373125490,1.0,2658.2,2657.9,0.188]
[1645373125687,1.0,2658.1,2657.9,1.188]
[1645373125888,1.00225027,2658.1,2657.9,1.188]
[1645373126335,1.00225027,2658.1,2657.9,0.188]
[1645373126633,1.0,2658.1,2657.9,1.188]
[1645373126831,1.00225028,2658.1,2657.9,1.0]
[1645373127034,0.06330043,2658.1,2657.9,1.0]
[1645373127237,0.06330043,2658.1,2657.8,2.72609366]
[1645373127238,0.00225028,2658.1,2657.8,2.72609366]
[1645373127437,0.25,2658.9,2657.9,20.22888689]
[1645373127635,0.25,2658.9,2658.8,0.89846371]
[1645373127834,3.5,2659.3,2658.8,0.89846371]
[1645373128035,1.0,2658.9,2658.8,0.89846371]
[1645373129889,1.0,2658.9,2658.3,1.0]
[1645373130087,0.00447761,2658.8,2658.2,3.70768]
[1645373130281,1.0,2658.4,2658.3,0.70989113]
[1645373130683,1.0,2658.4,2658.3,1.70989113]
[1645373131083,1.0,2658.4,2658.3,2.65363381]
[1645373132491,1.0,2658.4,2658.3,1.94374268]
[1645373132686,1.0,2658.4,2658.3,2.6536349]
[1645373133733,1.0,2658.4,2658.3,1.6536349]
[1645373133930,1.0,2658.4,2658.3,2.6536349]
[1645373134830,0.95,2658.4,2658.3,2.6536349]
[1645373135230,0.00447761,2659.2,2658.3,2.6536349]
[1645373135433,0.00447761,2659.2,2658.4,1.70989222]
[1645373135434,0.00243394,2658.5,2658.4,1.70989222]
[1645373135833,1.00243394,2658.5,2658.4,1.00989222]
[1645373136032,1.00243394,2658.5,2658.4,2.00989222]
[1645373136338,1.0,2658.5,2658.4,2.00989222]
[1645373136736,0.00447761,2659.2,2658.5,25.02]
[1645373136737,1.0,2658.8,2658.5,25.02]
[1645373136933,1.0,2658.8,2658.6,1.83848222]
[1645373137284,1.0,2658.8,2658.7,0.70989222]
[1645373137694,1.0,2658.8,2658.7,2.69657509]
[1645373140088,1.0,2659.1,2658.7,3.63715509]
[1645373140293,0.00243378,2658.9,2658.8,0.70989222]
[1645373140688,0.00243378,2658.9,2658.8,1.00989222]
[1645373141130,1.0,2659.0,2658.8,1.00989222]
[1645373141331,1.00243373,2659.0,2658.9,0.70989222]
[1645373141532,1.00243373,2659.0,2658.9,3.8]
[1645373141533,0.00691134,2659.0,2658.9,3.8]
[1645373141734,0.00691134,2659.0,2658.9,4.50989222]
[1645373141735,0.00243373,2659.0,2658.9,4.50989222]
[1645373141934,0.00243373,2659.0,2658.9,5.50989222]
[1645373142135,0.00243373,2659.0,2658.9,17.97032792]
[1645373142332,1.00447761,2659.1,2658.9,17.97032792]
[1645373142533,1.00243369,2659.1,2659.0,6.15034222]
[1645373142733,0.0097333,2659.5,2659.1,11.44037]
[1645373142734,1.0,2659.3,2659.1,11.44037]
[1645373142936,1.0,2659.4,2659.2,4.20989222]
[1645373143134,1.0,2659.4,2659.3,0.70989222]
[1645373143732,1.0,2659.4,2659.3,1.89084731]
[1645373143934,0.00447761,2659.7,2659.3,5.39084731]
[1645373143935,1.00447761,2659.7,2659.3,5.39084731]
[1645373144236,1.00447761,2659.7,2659.4,1.00989222]
[1645373144237,1.0,2659.7,2659.4,1.00989222]
[1645373144436,0.007,2660.0,2659.5,12.46022]
[1645373144437,1.0,2659.9,2659.5,12.46022]
[1645373144635,1.0,2659.9,2659.5,14.34065]
[1645373144636,1.00447761,2659.9,2659.5,14.34065]
[1645373144892,0.00447761,2659.9,2659.7,1.10335505]
[1645373145085,0.007,2660.0,2659.7,2.04356505]
[1645373145287,0.8627096,2659.9,2659.8,0.7121837]
[1645373145887,0.007,2660.0,2659.7,2.04356505]
[1645373146088,0.0083106,2660.0,2659.7,2.04356505]
[1645373146388,0.0083106,2660.0,2659.7,2.34356505]
[1645373146587,0.0083106,2660.0,2659.8,3.5]
[1645373146886,0.0007099,2660.0,2659.8,3.5]
[1645373147089,0.00447761,2660.1,2659.8,3.5]
[1645373147289,1.00447761,2660.2,2659.7,2.34356505]
[1645373147490,0.00243513,2660.0,2659.7,1.40335505]
[1645373147688,0.00691274,2660.0,2659.7,1.10335505]
[1645373147889,0.86172106,2659.9,2659.7,1.40335505]
[1645373148092,1.00243513,2660.0,2659.7,1.40335505]
[1645373148289,1.0,2659.9,2659.7,1.40335505]
[1645373148535,1.0,2659.9,2659.7,2.34357505]
[1645373148936,1.0,2660.0,2659.7,13.86357505]
[1645373149139,1.00447761,2660.0,2659.7,2.34357505]
[1645373149535,1.00447761,2660.0,2659.7,3.34357505]
[1645373149738,1.00447761,2660.0,2659.7,3.29357505]
[1645373149936,0.00578637,2660.0,2659.7,3.48147505]
[1645373150139,0.00130876,2660.0,2659.7,3.48147505]
[1645373150537,1.00130876,2660.0,2659.7,3.48147505]
[1645373150744,1.0,2660.0,2659.7,2.48147505]
[1645373150939,1.0,2660.0,2659.8,1.0]
[1645373150940,1.00243515,2660.0,2659.8,1.0]
[1645373151341,1.00243515,2660.0,2659.7,3.48147505]
[1645373151539,1.00691276,2660.0,2659.7,3.48147505]
[1645373151739,0.00691276,2660.0,2659.7,14.81357505]
[1645373151941,1.0,2660.2,2659.7,3.29357505]
[1645373152137,0.00447761,2660.1,2659.7,3.48147505]
[1645373152388,0.00131033,2660.0,2659.7,3.48147505]
[1645373153194,0.00447761,2660.1,2659.8,3.5]
[1645373153393,0.00131033,2660.0,2659.8,3.5]
[1645373153690,0.00131033,2660.0,2659.7,3.48147505]
[1645373154389,1.00447761,2660.2,2659.7,3.48147505]
[1645373154691,0.00244729,2660.0,2659.8,1.09594344]
[1645373154889,0.00244729,2660.0,2659.8,2.09594344]
[1645373155292,0.00244729,2660.0,2659.8,1.0]
[1645373155494,1.00447761,2660.2,2659.7,1.37812]
[1645373155792,0.00244727,2660.0,2659.7,2.37812]
[1645373156031,0.00244727,2660.0,2659.7,1.37812]
[1645373156230,0.00244727,2660.0,2659.9,1.14363808]
[1645373156830,1.00447761,2660.2,2659.7,2.37812]
[1645373157033,0.00244725,2660.1,2659.7,2.37812]
[1645373157933,1.00447761,2660.2,2659.7,0.4379]
[1645373157934,1.0,2660.0,2659.7,0.4379]
[1645373158131,1.00692488,2660.0,2659.7,0.25]
[1645373158333,1.00692488,2660.0,2659.7,1.0]
[1645373158736,1.00692488,2660.0,2659.8,3.5]
[1645373158940,1.00244727,2660.0,2659.9,1.0]
[1645373159137,1.0,2660.1,2659.9,1.0]
[1645373159334,1.0,2660.1,2660.0,1.13352475]
[1645373159535,1.0,2660.1,2660.0,4.63352475]
[1645373159820,1.0,2660.2,2660.1,0.94002]
[1645373160014,0.25894482,2660.4,2660.1,4.44002]
[1645373160215,0.25894482,2660.4,2660.2,0.94001]
[1645373160418,0.25,2660.4,2660.2,0.94001]
[1645373160616,0.25,2660.4,2660.2,1.24001]
[1645373160617,1.00223645,2660.3,2660.2,1.24001]
[1645373161515,1.0,2660.3,2660.2,1.24001]
[1645373161717,1.25223642,2660.4,2660.2,1.24001]
[1645373162115,0.25223642,2660.4,2660.2,1.24001]
[1645373162614,1.25223642,2660.4,2660.2,1.24001]
[1645373162816,1.25,2660.4,2660.2,1.24001]
[1645373163016,0.2522364,2660.4,2660.2,1.24001]
[1645373163637,1.2522364,2660.4,2660.2,1.24001]
[1645373163832,1.25,2660.4,2660.2,1.24001]
[1645373164336,1.25226721,2660.4,2660.2,1.24001]
[1645373165132,1.25,2660.4,2660.2,1.24001]
[1645373165331,1.25226721,2660.4,2660.2,1.24001]
[1645373165734,0.25226721,2660.4,2660.2,1.24001]
[1645373165933,1.25226721,2660.4,2660.2,1.24001]
[1645373166337,1.0,2660.5,2660.3,5.87991]
[1645373166533,0.00226721,2660.4,2660.3,6.17991]
[1645373167034,0.07685866,2660.6,2660.3,7.19074049]
[1645373167287,0.07238105,2660.6,2660.3,5.31083049]
[1645373167587,0.00447761,2661.3,2660.5,0.93993]
[1645373167796,0.00447761,2661.3,2660.6,4.5]
[1645373168187,0.50447761,2661.7,2660.7,0.88619871]
[1645373168389,0.00447761,2661.7,2660.9,18.02]
[1645373168587,0.00447761,2661.7,2660.9,19.89948]
[1645373168789,0.99,2661.3,2660.9,13.69948]
[1645373168988,0.00130831,2661.4,2660.9,13.88718]
[1645373169187,0.00447761,2661.3,2661.0,0.3]
[1645373169488,1.0,2661.3,2661.1,2.90078382]
[1645373169790,0.00130831,2661.4,2661.2,11.82]
[1645373169988,0.095,2661.7,2661.3,0.1877]
[1645373170187,0.00455155,2661.9,2661.4,14.5]
[1645373170389,7.9024,2662.7,2661.6,11.52]
[1645373170390,4.4024,2662.7,2661.6,11.52]
[1645373170590,3.5,2663.0,2661.5,1.12717]
[1645373170591,0.905,2662.6,2661.8,11.52]
[1645373170789,0.905,2662.8,2662.2,11.52]
[1645373171049,0.905,2662.8,2662.3,0.1877]
[1645373171239,0.855,2663.0,2662.3,0.1877]
[1645373171542,0.25,2663.2,2662.3,0.1877]
[1645373171737,0.25,2663.2,2662.3,0.4877]
[1645373171940,1.1543,2663.9,2663.0,0.83676567]
[1645373172147,0.8719246,2663.8,2663.0,1.13676567]
[1645373172342,0.25,2664.0,2663.0,1.13676567]
[1645373172343,1.0,2663.4,2663.0,1.13676567]
[1645373172542,1.0,2663.6,2663.0,1.27496564]
[1645373172741,1.0,2663.6,2663.0,12.98266564]
[1645373172943,1.0,2663.7,2663.2,1.87776]
[1645373173146,1.0,2663.5,2662.9,1.87821]
[1645373173543,0.25,2664.0,2662.9,1.87821]
[1645373173544,1.0,2663.3,2662.9,1.87821]
[1645373173742,0.25,2664.0,2662.9,1.87821]
[1645373173743,1.0,2663.1,2662.9,1.87821]
[1645373174150,1.0,2663.1,2662.5,1.12701]
[1645373174347,1.0,2663.0,2662.3,2.81723]
[1645373174544,0.1877,2663.9,2662.3,2.81723]
[1645373174545,1.0,2662.6,2662.3,2.81723]
[1645373174782,1.0,2662.5,2662.3,2.81723]
[1645373175382,0.00244609,2662.8,2662.3,2.81723]
[1645373175584,0.00244609,2662.8,2662.4,1.13283172]
[1645373175783,0.00244609,2662.8,2662.4,3.25979172]
[1645373175981,1.0,2663.0,2662.4,3.25979172]
[1645373176179,1.0,2663.0,2662.4,3.85979172]
[1645373176380,0.00244611,2662.7,2662.4,2.72696]
[1645373176581,0.00244611,2662.7,2662.4,2.53926]
[1645373176981,0.00244611,2662.7,2662.5,0.1877]
[1645373177180,1.0,2663.0,2662.5,0.1877]
[1645373177583,0.00244613,2662.7,2662.6,2.03473475]
[1645373177782,0.00244613,2662.7,2662.6,2.33473475]
[1645373177982,0.00244613,2662.7,2662.6,2.28473475]
[1645373178184,0.00244613,2662.7,2662.6,3.22389475]
[1645373178386,1.0,2663.1,2662.7,20.52]
[1645373178645,3.5,2664.2,2663.0,5.0]
[1645373178843,1.0,2663.6,2663.1,11.7077]
[1645373179047,1.0,2663.6,2663.3,0.93889]
[1645373179245,1.0,2663.6,2663.4,1.21525955]
[1645373179841,1.0,2663.6,2663.4,2.15416955]
[1645373180447,1.0,2663.7,2663.5,0.1877]
[1645373180644,1.0,2664.2,2663.5,0.1877]
[1645373180942,1.0,2664.3,2663.5,0.1877]
[1645373181345,1.0,2664.2,2664.0,1.09036209]
[1645373181545,0.25,2664.7,2664.0,1.09036209]
[1645373181744,4.78475427,2665.0,2664.0,1.09036209]
[1645373181950,1.0,2664.1,2664.0,1.09036209]
[1645373182146,4.0647,2665.0,2664.0,1.09036209]
[1645373182147,1.0,2664.2,2664.0,1.09036209]
[1645373182382,3.6875,2665.0,2664.0,1.09036209]
[1645373182681,3.6875,2665.0,2664.0,1.69036209]
[1645373182682,0.1875,2665.0,2664.0,1.69036209]
[1645373182881,0.074,2664.1,2664.0,1.69036209]
[1645373183082,3.5,2665.1,2664.0,1.69036209]
[1645373183285,11.9575,2665.2,2664.4,1.09610564]
[1645373183482,0.00978048,2664.6,2664.4,1.39610564]
[1645373183683,0.00978048,2664.6,2664.4,0.3]
[1645373183891,1.0,2664.5,2664.4,0.3]
[1645373184084,1.0,2664.5,2664.1,0.3]
[1645373184284,1.0,2664.5,2664.0,0.3]
[1645373184492,0.97537,2664.4,2664.0,1.23869]
[1645373184788,0.4375,2665.2,2664.1,3.5]
[1645373184789,0.97537,2664.5,2664.1,3.5]
[1645373184989,0.00977979,2665.0,2664.4,11.52]
[1645373185192,0.00487855,2665.4,2664.9,4.5]
[1645373185389,0.00487855,2665.4,2664.9,8.0]
[1645373185588,0.00487855,2665.4,2665.0,2.29405302]
[1645373185787,0.00487855,2665.4,2665.0,14.10764254]
[1645373186737,1.24656195,2666.0,2665.0,14.10764254]
[1645373186935,1.18930195,2666.0,2665.2,0.93818]
[1645373187142,0.04092649,2665.8,2665.3,0.3]
[1645373187339,7.5675,2667.0,2665.6,11.53221642]
[1645373187340,0.25,2666.6,2665.6,11.53221642]
[1645373187542,0.25,2666.6,2665.9,0.03656076]
[1645373187738,0.1077267,2667.1,2665.9,0.03656076]
[1645373187943,5.0577267,2667.1,2665.9,0.03656076]
[1645373188137,7.38,2667.0,2665.9,0.03656076]
[1645373188338,0.00128383,2666.4,2665.9,0.33656076]
[1645373188539,0.00128383,2666.4,2666.1,1.14574718]
[1645373188737,0.00128383,2666.4,2666.1,0.3]
[1645373188939,0.00128383,2666.4,2665.9,0.33656076]
[1645373189140,0.0577267,2667.1,2666.0,0.93794]
[1645373189341,0.0577267,2667.1,2666.1,0.1875]
[1645373189542,0.00128383,2666.4,2666.1,0.1875]
[1645373189793,0.00513453,2666.8,2666.3,0.9377238]
[1645373189991,0.00513453,2666.8,2666.4,0.6]
[1645373190192,0.0577267,2667.1,2666.5,13.46146573]
[1645373190494,0.0577267,2667.1,2666.5,17.44886573]
[1645373190689,0.0577267,2667.1,2666.5,1.42518]
[1645373191090,0.0577267,2667.1,2666.6,11.52]
[1645373191290,0.0577267,2667.1,2666.7,0.3]
[1645373191493,0.0577267,2667.1,2666.7,1.23762]
[1645373191698,0.0577267,2667.1,2666.8,0.1874]
[1645373191892,0.0577267,2667.1,2666.9,0.89462492]
[1645373192296,0.0577267,2667.1,2666.9,1.19462492]
[1645373192793,0.0077267,2667.1,2666.9,1.19462492]
[1645373193191,0.01016891,2667.1,2666.9,1.19462492]
[1645373193397,0.01016891,2667.1,2666.9,1.49462492]
[1645373193638,0.01016891,2667.1,2666.6,0.93754]
[1645373193844,0.01016891,2667.1,2666.3,0.93793]
[1645373194037,0.0077267,2667.1,2666.3,1.23793]
[1645373194237,0.0077267,2667.1,2666.9,0.0008]
[1645373194538,0.00244228,2667.0,2666.9,0.0008]
[1645373195236,0.0077267,2667.1,2666.9,0.0008]
[1645373195437,5.0077267,2667.1,2665.9,0.03656076]
[1645373195741,5.0,2666.6,2665.9,0.03656076]
[1645373195935,5.3772,2666.9,2665.9,0.03656076]
[1645373196136,0.1875,2666.8,2665.9,0.03656076]
[1645373196536,4.0647,2666.8,2665.9,0.03656076]
[1645373196737,5.0,2666.5,2665.9,6.076e-05]
[1645373196940,11.52,2666.2,2665.7,0.00244327]
[1645373197137,5.3772,2666.5,2665.7,0.00244327]
[1645373197138,5.0,2666.5,2665.7,0.00244327]
[1645373197595,5.3772,2666.6,2665.1,1.01469124]
[1645373197791,0.1875,2666.5,2665.1,1.01469124]
[1645373197993,3.5,2666.9,2665.1,1.01469124]
[1645373197994,5.0,2666.6,2665.1,1.01469124]
[1645373198193,3.6875,2666.5,2665.1,1.01469124]
[1645373198391,5.0,2666.4,2665.1,1.01469124]
[1645373198591,0.3772,2666.5,2664.7,0.93854]
[1645373198792,16.52,2666.3,2664.8,3.93934]
[1645373198997,3.5,2666.2,2664.8,0.1875]
[1645373199194,16.52,2666.3,2664.7,0.93854]
[1645373199195,0.1875,2666.1,2664.7,0.93854]
[1645373199395,0.1875,2666.2,2664.7,0.93854]
[1645373199594,0.1875,2666.2,2664.7,1.23854]
[1645373199793,0.1875,2666.2,2664.9,1.16833817]
[1645373200198,0.1875,2666.2,2665.0,0.93839]
[1645373200394,0.1875,2666.2,2665.3,0.00116968]
[1645373200593,8.6875,2666.3,2665.3,0.00116968]
[1645373201048,16.7075,2666.3,2665.3,0.00116968]
[1645373201240,16.52,2666.3,2665.0,3.5]
[1645373201637,5.0,2666.3,2665.7,0.00244492]